Cogmind - Beta 10.2 *** ADVENTURER MODE // 2021.01.09 @ 01:22:20 Player: Jeff Result: Destroyed by G-47 Trooper with Particle Gun Performance ------------- Evolutions (1) 500 Regions Visited (3) 600 Robots Destroyed (49) 245 Value Destroyed (1319) 1319 Prototype IDs (2) 40 Alien Tech Used (0) 0 Bonus (328) 328 TOTAL SCORE: 3032 Bonus ------- High Alert Combat Kills 63 Follower Combat Kills 265 Cogmind --------- Core Integrity 0/400 Matter 300/300 Energy 280/280 System Corruption 2% Temperature Cool (9) Movement Core (350) Ox6 Location -9/Storage Parts ------- > --- POWER (1) -------- Heavy Ion Engine > --- PROPULSION (3) --- (None) > --- UTILITY (3) ------ Medium Storage Unit Improved Sensor Array Improved Signal Interpreter > --- WEAPON (2) ------- Katana > --- INVENTORY (8) ---- Small Battery (100) Improved Assault Rifle Datajack Peak State ------------ > --- POWER ------------ Ion Engine > --- PROPULSION ------- Aluminum Leg Aluminum Leg Aluminum Leg > --- UTILITY ---------- Visual Processing Unit Improved Signal Interpreter Drone Bay > --- WEAPON ----------- Improved Assault Rifle Katana > --- INVENTORY -------- Medium Storage Unit Small Battery Heavy Assault Rifle Datajack [Rating: 19] Favorites ----------- Power Ion Engine Engine Ion Engine Propulsion Aluminum Leg Leg Aluminum Leg Utility Visual Processing Unit Device Sensor Array Storage Medium Storage Unit Processor Visual Processing Unit Protection Utility Shielding Weapon Autogun Energy Gun Medium Laser Ballistic Gun Autogun Slashing Weapon Katana Build | -11 -10 -9 -9 ------- Run | Scr Mat Mat Sto Slots Evolved 2 | . . 2 . Power . | . . . . Propulsion 1 | . . 1 . Utility 1 | . . 1 . Weapon . | . . . . Parts Attached 42 | 6 6 14 16 Power 5 | 1 . 2 2 Engine 5 | 1 . 2 2 Core . | . . . . Reactor . | . . . . Propulsion 11 | 2 . 4 5 Treads . | . . . . Leg 11 | 2 . 4 5 Wheel . | . . . . Hover . | . . . . Flight . | . . . . Utility 11 | 1 3 4 3 Device 3 | . 1 . 2 Storage 2 | 1 . . 1 Processor 3 | . 1 2 . Hackware . | . . . . Protection 3 | . 1 2 . Artifact . | . . . . Weapon 15 | 2 3 4 6 Energy Gun 7 | . 1 3 3 Energy Cannon . | . . . . Ballistic Gun 7 | 2 2 1 2 Ballistic Cannon . | . . . . Launcher . | . . . . Special Weapon . | . . . . Impact Weapon . | . . . . Slashing Weapon 1 | . . . 1 Piercing Weapon . | . . . . Special Melee Weapon . | . . . . Unidentified Prototypes 2 | . . . 2 Parts Lost 14 | . . 8 6 Power 1 | . . . 1 Propulsion 6 | . . 3 3 Utility 1 | . . 1 . Weapon 6 | . . 4 2 Highest Loss Streak 3 | . . 3 3 Average Slot Usage (%) 90 | . 99 89 87 Engine 11 | . 14 11 10 Leg 26 | . 28 25 25 Device 8 | . 9 11 5 Storage 2 | . 6 . 4 Processor 15 | . 4 15 18 Protection 4 | . 7 5 2 Energy Gun 4 | . 2 3 5 Ballistic Gun 14 | . 25 16 6 Slashing Weapon 3 | . . . 8 Naked Turns . | . . . . Heaviest Build 22 | 12 13 15 22 Greatest Support 33 | 20 20 33 30 Greatest Overweight (x) 7 | . . . 7 Average Overweight (x) . | . . . . Largest Inventory Capacity 8 | 6 6 4 8 Average Capacity 4 | 4 4 4 5 Most Carried 6 | 4 6 4 4 Average Carried 3 | 1 3 3 3 Final Capacity 8 | 6 4 4 8 Final Carried 4 | 2 4 3 3 Class Distribution -------------------- 49% | Mutant 22% | Scavenger-Mutant 14% | Scavenger-Skirmisher 13% | Commander-Mutant Dominant Class ---------------- Mutant | -10/Materials Mutant | -9/Materials Scavenger-Mutant | -9/Storage Resources | -11 -10 -9 -9 ----------- Run | Scr Mat Mat Sto Matter Collected 1218 | 257 117 537 307 Remotely . | . . . . Salvage Created 1688 | . 125 893 670 Parts 114 | . 15 58 41 Haulers Intercepted 2 | . . . 2 Recyclers Shooed 1 | . . . 1 Parts Field Recycled . | . . . . Retrieved Matter . | . . . . Parts Self-Destructed . | . . . . Prevented . | . . . . Kills | -11 -10 -9 -9 ------- Run | Scr Mat Mat Sto Combat Hostiles Destroyed 39 | . 3 21 15 Melee 2 | . . . 2 Guns 37 | . 3 21 13 Classes Destroyed 9 | . 3 2 4 Worker 1 | . . . 1 Builder 1 | . . . 1 Hauler 2 | . . . 2 Watcher 6 | . 2 4 . Swarmer 10 | . 2 4 4 Grunt 20 | . 1 11 8 Brawler 1 | . . . 1 Duelist 2 | . . 1 1 Sentry 6 | . . 5 1 Best Kill Streak 11 | . 2 4 11 Combat Bots Only 5 | . 2 4 5 Max Kills in Single Turn 1 | . 1 1 1 Gunslinging . | . . . . Exploded . | . . . . Melee 1 | . . . 1 Uniques/NPCs Destroyed . | . . . . Combat | -11 -10 -9 -9 -------- Run | Scr Mat Mat Sto Damage Taken 1833 | . 22 1000 811 Core 408 | . . 186 222 Absorbed by Shields . | . . . . Core Remaining (%) 100 | 100 100 . . Volleys Fired 163 | . 11 90 62 Largest 2 | . 2 2 2 Hottest 79 | . 60 79 73 Shots Fired 259 | . 22 159 78 Gun 259 | . 22 159 78 Cannon . | . . . . Launcher . | . . . . Special . | . . . . Kinetic 200 | . 20 131 49 Thermal 57 | . . 28 29 Explosive . | . . . . Electromagnetic 2 | . 2 . . Robot Hit Streak 24 | . 4 24 23 Robot Miss Streak 2 | . 2 2 1 Penetration Max . | . . . . Secondary Targets 7 | . . 4 3 Max Gunslinging Chain 1 | . . 1 1 Shots Hit Robots 205 | . 11 120 74 Core Hits 76 | . 6 42 28 Critical Hits 2 | . 1 1 . Critical Kills . | . . . . Critical Parts Destroyed 2 | . 1 1 . Melee Attacks 6 | . . . 6 Impact . | . . . . Slashing 6 | . . . 6 Piercing . | . . . . Sneak Attacks 1 | . . . 1 Combat Hostiles . | . . . . Follow-up Attacks . | . . . . Damage Inflicted 2683 | . 155 1363 1165 Guns 2422 | . 155 1363 904 Cannons . | . . . . Explosions . | . . . . Melee 261 | . . . 261 Ramming . | . . . . Kinetic 1818 | . 155 1072 591 Thermal 604 | . . 291 313 Explosive . | . . . . Electromagnetic . | . . . . Impact . | . . . . Slashing 261 | . . . 261 Piercing . | . . . . Highest Corruption 2 | . . 1 2 Average Corruption 1 | . . 1 1 Corruption Purged . | . . . . Effects 11 | . . 6 5 Message Errors 5 | . . 3 2 Heat Flow Errors 2 | . . . 2 Energy Discharges 2 | . . 1 1 Targeting Errors 2 | . . 2 . Overload Shots . | . . . . Overflow Damage . | . . . . Projectiles . | . . . . Explosions . | . . . . Melee . | . . . . Knockbacks . | . . . . Impact . | . . . . Kinetic . | . . . . Secondary . | . . . . Self-Inflicted Damage . | . . . . Shots . | . . . . Rammed . | . . . . Targets Rammed . | . . . . Kicked . | . . . . Crushed . | . . . . Highest Temperature 260 | . 18 98 260 Average Temperature 38 | . 9 23 57 Received Heat Transfer 744 | . 12 378 354 Siege Activations . | . . . . Robots Corrupted . | . . . . Combat Hostiles . | . . . . Parts Fried . | . . . . Impact Corruptions . | . . . . Robots Melted . | . . . . Combat Hostiles . | . . . . Parts Melted 2 | . . 1 1 Heat Transferred 1581 | . . 767 814 Parts Sabotaged . | . . . . Parts Stolen . | . . . . Parts Stripped . | . . . . Power Chain Reactions . | . . . . Missiles Intercepted . | . . . . Alert | -11 -10 -9 -9 ------- Run | Scr Mat Mat Sto Peak Influence 614 | . 123 458 614 Initial 153 | . . 43 153 Average 284 | . 30 264 439 Maximum Alert Level 2 | . . 2 2 Low Security (%) 31 | 100 100 22 6 Level 1 35 | . . 63 21 Level 2 33 | . . 14 71 Level 3 . | . . . . Level 4 . | . . . . Level 5 . | . . . . High Security . | . . . . Max Security . | . . . . Squads Dispatched 11 | . 1 4 6 Investigation 4 | . 1 2 1 Extermination . | . . . . Reinforcement 4 | . . 2 2 Assault . | . . . . Garrison 3 | . . . 3 Intercept . | . . . . Construction Impeded . | . . . . Haulers Reinforced . | . . . . Stealth | -11 -10 -9 -9 --------- Run | Scr Mat Mat Sto Distress Signals 3 | . . 2 1 Communications Jammed . | . . . . Distress Signals . | . . . . Times Spotted 69 | . 7 33 29 Peak Tracking Total 5 | . 4 5 5 Tactical Retreats . | . . . . Traps | -11 -10 -9 -9 ------- Run | Scr Mat Mat Sto Traps Triggered 4 | . 1 . 3 Indirectly . | . . . . Trap Hack Attempts . | . . . . Triggered . | . . . . Disarmed . | . . . . Reprogrammed . | . . . . Reused . | . . . . Traps Extracted . | . . . . Installed . | . . . . Triggered . | . . . . Machines | -11 -10 -9 -9 ---------- Run | Scr Mat Mat Sto Machines Disabled 2 | . . 1 1 Max in Single Turn 1 | . . 1 1 Machines Sabotaged . | . . . . Garrisons Compromised . | . . . . Overloaded Fab Kills . | . . . . Fab Network Shutdowns . | . . . . Hacking | -11 -10 -9 -9 --------- Run | Scr Mat Mat Sto Machines Accessed 12 | . 1 5 6 Terminals 8 | . 1 3 4 Fabricators . | . . . . Repair Stations 2 | . . 1 1 Recycling Units . | . . . . Scanalyzers 1 | . . 1 . Garrison Access 1 | . . . 1 Total Hacks 35 | . 2 16 17 Successful 28 | . 2 11 15 Failed 7 | . . 5 2 Catastrophic . | . . . . Database Lockouts . | . . . . Manual . | . . . . Terminals 24 | . 2 10 12 Fabricators . | . . . . Repair Stations 7 | . . 4 3 Recycling Units . | . . . . Scanalyzers 2 | . . 2 . Garrison Access 2 | . . . 2 Terminal Hacks 18 | . 2 6 10 Record 4 | . . 3 1 Part Schematic 2 | . . . 2 Robot Analysis 2 | . 1 1 . Open Door 1 | . . . 1 Repair Station Index 1 | . . . 1 Alert Level 1 | . . 1 . Patrol Status 1 | . . . 1 Reinforcement Status 1 | . . . 1 Hauler Manifests 1 | . . . 1 Registered Prototypes 1 | . . 1 . Zone Layout 3 | . 1 . 2 Fabricator Hacks . | . . . . Repair Station Hacks 6 | . . 3 3 Scan Component 4 | . . 2 2 Repair 2 | . . 1 1 Recycling Unit Hacks . | . . . . Scanalyzer 2 | . . 2 . Insert Component 1 | . . 1 . Analyze 1 | . . 1 . Garrison Access Hacks 2 | . . . 2 Unlock Access 1 | . . . 1 Coupler Status 1 | . . . 1 Unauthorized Hacks . | . . . . Terminals . | . . . . Fabricators . | . . . . Repair Stations . | . . . . Recycling Units . | . . . . Scanalyzers . | . . . . Garrison Access . | . . . . Data Cores Recovered . | . . . . Used . | . . . . Hacking Detections 9 | . . 4 5 Full Trace Events 4 | . . 3 1 Feedback Events 1 | . . 1 . Corruption 1 | . . 1 . Feedback Blocked . | . . . . Robot Schematics Acquired . | . . . . Robots Built . | . . . . Matter . | . . . . Time . | . . . . Total Robot Build Rating . | . . . . Part Schematics Acquired 3 | . . 1 2 Parts Built . | . . . . Matter . | . . . . Time . | . . . . Total Part Build Rating . | . . . . Parts Repaired 2 | . . 1 1 Time 52 | . . 26 26 Parts Recycled . | . . . . Recycled Matter . | . . . . Retrieved Matter . | . . . . Retrieved Components . | . . . . Parts Scanalyzed 1 | . . 1 . Part Schematics Acquired 1 | . . 1 . Parts Damaged . | . . . . Bothacking | -11 -10 -9 -9 ------------ Run | Scr Mat Mat Sto Used RIF Installer . | . . . . Robots Hacked . | . . . . Non-combat . | . . . . Combat . | . . . . Robot Hacks Applied . | . . . . Relay Couplers Released . | . . . . Robots Rewired . | . . . . Allies Hacked . | . . . . Hacks Repelled . | . . . . Allies | -11 -10 -9 -9 -------- Run | Scr Mat Mat Sto Total Allies 10 | . . . 10 Largest Group 10 | . . . 10 Highest-Rated Group 88 | . . . 88 Highest-Rated Ally 16 | . . . 16 Total Orders . | . . . . Ally Attacks 60 | . . . 60 Total Damage 663 | . . . 663 Kills 11 | . . . 11 Allies Corrupted . | . . . . Allies Melted . | . . . . Intel | -11 -10 -9 -9 ------- Run | Scr Mat Mat Sto Robot Analysis Total 2 | . 1 1 . Derelict Logs Recovered . | . . . . Drone Launches 2 | . . . 2 Drone Recoveries . | . . . . Exploration | -11 -10 -9 -9 ------------- Run | Scr Mat Mat Sto Turns Passed 1739 | 59 281 734 665 Spaces Moved 993 | 45 189 399 360 Core 16 | 12 . . 4 Treads . | . . . . Legs 977 | 33 189 399 356 Wheels . | . . . . Hover . | . . . . Flight . | . . . . Fastest Speed 50 | 50 120 120 120 Average Speed 123 | 101 120 120 133 Slowest Speed 400 | 120 120 120 400 Overloaded Moves . | . . . . Propulsion Burnouts . | . . . . Robots Hopped 1 | . . . 1 Cave-ins Triggered . | . . . . Exploration Rate (%) 38 | 4 41 50 58 Regions Visited 3 Branch Regions 1 Pre-discovered Areas 1 | . . . 1 Known Exits Taken 1 | . . 1 . Unknown Exits Taken 2 | 1 1 . . Scrap Searched . | . . . . Spaces Dug . | . . . . Terrain Destroyed . | . . . . Melee . | . . . . Projectile . | . . . . AOE . | . . . . Terrain Rammed . | . . . . Walls Destroyed . | . . . . Machines Disabled . | . . . . Actions | -11 -10 -9 -9 --------- Run | Scr Mat Mat Sto Total 1263 | 58 227 522 456 Wait . | . . . . Move 988 | 44 188 398 358 Hop 1 | . . . 1 Pick Up 41 | 8 12 12 9 Fast Attach 9 | . . 3 6 Attach 23 | 6 3 7 7 Detach 2 | . 2 . . Swap 10 | . 3 4 3 Drop 20 | . 8 8 4 Fire 163 | . 11 90 62 Melee 6 | . . . 6 Ram . | . . . . Kick . | . . . . Crush . | . . . . Escape Stasis . | . . . . Rewire . | . . . . Trap . | . . . . Miscellaneous . | . . . . Route ------- -11/Scrapyard -10/Materials (discovered 2 exits: *Mat / *Min) -9/Materials (discovered 5 exits: [*Mat] / [*Min x2] / *Sto x2) -9/Storage (discovered 1 exit: Gar) History --------- Turn | Location | Event 8 | -11/Scrapyard | Discovered new exit (range 15) 60 | -11/Scrapyard | Entered Materials 134 | -10/Materials | Discovered new exit (range 8) 142 | -10/Materials | Identified exit to Mines 273 | -10/Materials | Discovered new exit (range 10) 307 | -10/Materials | Build established: Mutant 341 | -10/Materials | Entered another Materials area 341 | -9/Materials | Evolved 2 slots: Propulsion x1, Utility x1 454 | -9/Materials | Discovered new exit (range 8) 533 | -9/Materials | Discovered new exit (range 13) 575 | -9/Materials | Discovered new exit (range 16) 740 | -9/Materials | Repaired Lgt. Armor Plating? 831 | -9/Materials | Discovered new exit (range 17) 882 | -9/Materials | Lost 3 parts (1n2w) 1047 | -9/Materials | Discovered new exit (range 8) 1074 | -9/Materials | Identified exit to Storage 1075 | -9/Materials | Entered Storage 1103 | -9/Storage | Lost 3 parts (1n1u1w) 1114 | -9/Storage | Core integrity fell below 50% 1166 | -9/Storage | Garrison activated, responded to threat 1278 | -9/Storage | Assisted by bots powering up and referring to "LRC-V3" 1306 | -9/Storage | Identified exit to Garrison 1473 | -9/Storage | Repaired Aluminum Leg 1569 | -9/Storage | Learned location of Armory (-4) 1625 | -9/Storage | Core integrity fell below 20% 1658 | -9/Storage | Lost 3 parts (2n1w) 1740 | -9/Storage | Destroyed by G-47 Trooper with Particle Gun Last Messages --------------- 01709_ Ion Engine severed. 01709_ Sml. Laser severed. 01709_ Aluminum Leg severed. 01709_ Acquired Beam Rifle. 01710_ U-05 Engineer lays Concrete. 01710_ W-16 Scout distress signal alerts nearby ally. 01711_ U-05 Engineer lays Concrete. 01715_ Acquired Aluminum Leg. 01721_ Triggered Blade Trap. 01721_ Massive razor-sharp blades shoot up from within the floor. 01721_ Aluminum Leg severed. 01721_ Beam Rifle severed. 01722_ U-05 Engineer lays Concrete. 01724_ Triggered Blade Trap. 01724_ Massive razor-sharp blades shoot up from within the floor. 01724_ Aluminum Leg severed. 01724_ U-05 Engineer lays Concrete. 01725_ G-34 Mercenary destroyed. 01728_ Acquired 30 matter. 01728_ K-01 Serf collects debris. Map ----- +----------------------------------------------------+ | ??????????????????????????????# * #= | | ??????????????????????????????# %[ # | | ??????????????????????????????# = #% | | ????????????????????#######???## ##+### | | ????????????????????#######????### ! ## | | ????????????????????##!!!##??????# T | | ????????????????????##!!!##??????# ##+ | | ????????????????????##" "##??????## ### | | ????????????????????## T#???????# #?# | | ??????????????#########+########### ### | | ??????????????# # | | ??????????????# ! !% / | | ??????????????# =%*% %# | | ??????????????# ######## ######/###+# | | ??????????????# #??????# #?# %! # | | ??????????????# #??????# #?# """# | | ??????????????# #????"##+### """## | | ??????????????# u#??? ## """#? | | ????#?????????# #?? # #? | | ????# ####### #? ]!! ## """#? | | ????# a [= # ]!! ## =% """#? | | ????# g= ku !! ## """#? | | ????# gk [[== # ## #? | | ????### #######%###?????? ##### #####? | | ??????????????#!#???????????????###????? | | ??????????????#@#??????????????????????? | | ??????????????#g#??????????????????????? | | ?????????k????# #??????????????????????? | | ??????????????# #??????????????????????? | | ??????????????# ??????????????????????? | | ??????????????+ ??????????????????????? | | ??????????????# ??????????????????????? | | ??????????????###??????????????????????? | | ???????????????????????????????######### | | ??????????????????????????####?# %[= | | ??????????????????????????# ## !%%= | | ?????????????????w????????# + *=![[ | | ??????????????????????????# ###+#+### | | ??????????????????????????# # !%!%*[ | | ??????????????????????????# T## """%""" | | ??????????????????????????####?# """!""" | | ???????????????????????????????# """=""" | | ???????????????????????????????# | | ???????????????????????????????# | | ???????????????????????????????# | | ???????????????????????????????# | | ???????????????????????????????######### | | ???????????????????????????????????????? | | ???????????????????????????????????????? | | ???????????????????????????????????????? | +----------------------------------------------------+ Best States ------------- Heat Dissipation 28 Energy Generation 14 Energy Capacity 280 Matter Stores 300 Matter Capacity 300 Sight Range 18 Robot Scan Range 13 Terrain Scan Density 10 Armor Coverage 150 Resistance: KI 20 Resistance: TH 20 Resistance: EX 20 Resistance: EM 20 Resistance: I 20 Resistance: S 20 Resistance: P 20 Utility Shielding 33 Evasion (%) 50 Offensive Hacking 10 Item Schematics ----------------- Lgt. Armor Plating | -9/Materials | Scanalyzed Plasma Cutter | -9/Storage | Hacked Hrd. Medium Armor Plating | -9/Storage | Hacked Robot Schematics ------------------ None Fabricated ------------ Nothing Alien Tech Used ----------------- None Achievements -------------- I Spy The More The Merrier Challenges ------------ None Game ------ Seed LegWeaponScrap Manual? 0 Play Time 00:42:01 Cumulative 7.8 hours Start 2021.01.09 @ 00:39:44 End 2021.01.09 @ 01:22:20 Sessions 1 Manual Loads 0 Difficulty Adventurer Special Mode None Game No. 10 Rogue 7 Adventurer 3 Explorer 0 Win Type - Total 0 Types 0/0/0/0/0/0/0/0/0 Lore% 2 Gallery% 8 Achievement% 6 Wizard Run 0 Options --------- ASCII 0 Keyboard 0 Movement Mouse Keybinds 0 Fullscreen 1 Font 18/SmallcapsGlow Map View 76x50 Tactical HUD 1 Map Filters NONE Filters NONE Steam 1 RUN: 451b8706-ab50-4a53-ba6f-ee002dff612f